bitfinex/quotes_SOLUSD_20250830
["timestamp","ask_amount","ask_price","bid_price","bid_amount"]
[1756536015718,4.5838905,206.24,206.22,37.74]
[1756536016441,5.2738905,206.24,206.22,37.74]
[1756536016739,4.5838905,206.23,206.22,42.58919018]
[1756536018317,0.69,206.26,206.22,42.58919018]
[1756536018517,4.5838905,206.23,206.22,42.58919018]
[1756536021250,4.6438905,206.23,206.22,42.58919018]
[1756536021618,4.6438905,206.23,206.22,37.74]
[1756536022112,4.6438905,206.23,206.22,4.84919018]
[1756536022317,4.6438905,206.23,206.22,42.52919018]
[1756536023719,4.6438905,206.23,206.22,4.84919018]
[1756536023922,4.6438905,206.23,206.22,42.50919018]
[1756536024120,0.06,206.23,206.22,43.21919018]
[1756536032456,1e-08,206.23,206.22,47.80308068]
[1756536033737,1e-08,206.23,206.22,49.74628968]
[1756536034148,1e-08,206.23,206.22,63.48404526]
[1756536035453,0.06,206.28,206.25,26.0]
[1756536035760,0.06,206.28,206.27,4.5838905]
[1756536036129,0.06,206.28,206.27,5.3038905]
[1756536036344,0.06,206.28,206.27,10.15190523]
[1756536036739,0.06,206.28,206.27,5.56801473]
[1756536037555,0.06,206.28,206.27,43.18801473]
[1756536038062,0.06,206.28,206.27,47.77190523]
[1756536038947,0.73,206.28,206.27,4.84801473]
[1756536039141,5.3138905,206.28,206.27,42.44801473]
[1756536039347,0.06,206.28,206.27,42.44801473]
[1756536040572,5.3138905,206.28,206.27,42.44801473]
[1756536041144,5.3138905,206.28,206.25,4.84825631]
[1756536041455,4.5838905,206.27,206.26,37.6]
[1756536041838,0.73,206.28,206.26,37.6]
[1756536042038,4.6438905,206.28,206.26,37.6]
[1756536043063,4.6438905,206.28,206.27,4.84801473]
[1756536043366,0.06,206.28,206.27,4.84801473]
[1756536043565,4.6438905,206.28,206.27,4.84801473]
[1756536044946,5.3138905,206.28,206.23,4.84895505]
[1756536045145,4.5838905,206.25,206.24,37.6]
[1756536045642,4.5838905,206.26,206.24,37.6]
[1756536046763,5.2538905,206.27,206.24,37.6]
[1756536046993,5.2538905,206.27,206.25,4.84848484]
[1756536047268,4.5838905,206.27,206.26,37.6]
[1756536048477,4.5838905,206.27,206.26,42.44824978]
[1756536048674,0.06,206.28,206.26,42.44824978]
[1756536048882,4.5838905,206.27,206.26,42.44824978]
[1756536049862,4.5838905,206.27,206.26,4.84824978]
[1756536050063,4.5838905,206.27,206.26,42.44824978]
[1756536052287,0.06,206.28,206.26,42.44824978]
[1756536052579,4.5838905,206.27,206.26,42.44824978]
[1756536055974,0.06,206.28,206.26,42.44824978]
[1756536056182,0.06,206.28,206.27,0.72]
[1756536056358,0.06,206.28,206.27,5.3038905]
[1756536056750,1e-08,206.28,206.27,19.04164608]
[1756536057561,1e-08,206.28,206.27,23.88966081]
[1756536057961,1e-08,206.28,206.27,28.47355181]
[1756536059281,1e-08,206.28,206.27,23.88966131]
[1756536059507,1e-08,206.28,206.27,28.47355181]
[1756536059866,1e-08,206.28,206.27,23.88966131]
[1756536060062,1e-08,206.28,206.27,28.47355181]
[1756536060270,1e-08,206.28,206.27,23.88966131]
[1756536060458,1e-08,206.28,206.27,28.47355181]
[1756536060659,1e-08,206.28,206.27,14.73579623]
[1756536061067,1e-08,206.28,206.27,52.33579623]
[1756536062868,1e-08,206.28,206.27,66.07355181]
[1756536068170,1e-08,206.3,206.29,39.73775558]
[1756536068472,1e-08,206.3,206.29,82.18530029]
[1756536068683,1e-08,206.3,206.29,87.44919079]
[1756536068900,4.5838905,206.41,206.33,26.0]
[1756536069071,5.2538905,206.42,206.36,4.5838905]
[1756536069266,0.67,206.41,206.37,37.6]
[1756536069473,5.2538905,206.41,206.37,37.6]
[1756536070988,5.2538905,206.41,206.38,4.84543075]
[1756536071288,5.2538905,206.41,206.39,37.58]
[1756536071685,4.5838905,206.4,206.39,37.58]
[1756536072093,5.2538905,206.41,206.39,37.58]
[1756536073492,131.6,206.43,206.4,4.84496124]
[1756536073699,131.6,206.43,206.41,37.58]
[1756536073873,0.67,206.42,206.41,37.58]
[1756536074191,131.6,206.41,206.34,4.84637006]
[1756536074394,4.5838905,206.36,206.35,37.58]
[1756536074593,5.2538905,206.36,206.35,37.58]
[1756536074777,4.5838905,206.36,206.35,37.58]
[1756536075497,4.5838905,206.36,206.35,42.4261352]
[1756536076080,5.2538905,206.36,206.35,42.4261352]
[1756536076579,4.5838905,206.36,206.35,42.4261352]
[1756536077310,4.5838905,206.37,206.35,43.1061352]
[1756536077596,4.5838905,206.37,206.35,42.4261352]
[1756536078267,0.67,206.39,206.35,42.4261352]
[1756536078486,4.5838905,206.38,206.35,42.4261352]
[1756536078680,131.6,206.41,206.35,42.4261352]
[1756536078883,4.5838905,206.38,206.34,4.84637006]
[1756536079197,4.5838905,206.38,206.35,37.58]
[1756536079399,4.5838905,206.37,206.35,37.58]
[1756536079893,4.5838905,206.37,206.35,38.26]
[1756536080291,1e-08,206.39,206.38,39.59559401]
[1756536080492,1e-08,206.39,206.38,82.12164608]
[1756536080698,1e-08,206.39,206.38,82.80164608]
[1756536080899,1e-08,206.39,206.38,87.64707683]
[1756536081109,4.5838905,206.48,206.38,128.57169751]
[1756536081295,4.5838905,206.48,206.43,4.5838905]
[1756536081499,4.5838905,206.48,206.44,38.5]
[1756536081674,4.5838905,206.48,206.45,0.68]
[1756536081879,0.1,206.49,206.46,37.82]
[1756536082084,0.1,206.49,206.46,38.5]
[1756536082491,4.6838905,206.49,206.46,38.5]
[1756536082983,0.1,206.49,206.47,4.84331864]
[1756536083188,0.1,206.49,206.48,37.82]
[1756536085094,0.1,206.49,206.48,42.66308407]
[1756536087193,4.5838905,206.51,206.48,42.66308407]
[1756536088310,4.5838905,206.5,206.48,42.66308407]
[1756536088806,4.5838905,206.5,206.49,37.76]
[1756536089004,4.5838905,206.5,206.46,4.58389]
[1756536089207,4.5838905,206.48,206.47,37.76]
[1756536090480,4.5838905,206.49,206.47,37.76]
[1756536090909,4.5838905,206.49,206.48,4.84308407]
[1756536092781,0.1638905,206.51,206.48,37.74]
[1756536093000,4.5838905,206.49,206.46,4.84355323]
[1756536093208,4.5838905,206.48,206.47,37.72]
[1756536095596,4.5838905,206.48,206.47,42.56331864]
[1756536095801,4.5838905,206.49,206.47,43.25331864]
[1756536096006,4.5838905,206.49,206.48,0.69]
[1756536096590,4.5838905,206.49,206.48,5.53308407]
[1756536097212,131.3438905,206.52,206.48,5.53308407]
[1756536097384,4.5838905,206.49,206.48,5.53308407]
[1756536097879,4.5838905,206.49,206.48,4.84308407]
[1756536098709,0.06,206.51,206.48,4.84308407]
[1756536098900,4.5838905,206.49,206.48,4.84308407]
[1756536099992,4.5838905,206.49,206.48,5.53308407]
[1756536100210,4.5838905,206.49,206.48,4.84308407]
[1756536100414,4.5838905,206.5,206.48,5.53308407]
[1756536100585,4.6438905,206.51,206.49,0.69]
[1756536101014,4.6438905,206.51,206.49,38.37]
[1756536101396,4.6438905,206.51,206.5,0.69]
[1756536101606,0.06,206.51,206.5,0.69]
[1756536101934,0.06,206.51,206.5,5.53261501]
[1756536102798,4.6438905,206.51,206.5,5.53261501]
[1756536104422,0.06,206.51,206.5,5.53261501]
[1756536106902,4.6438905,206.51,206.5,4.84261501]
[1756536107121,4.6438905,206.51,206.5,42.48261501]
[1756536107321,0.06,206.51,206.5,42.48261501]
[1756536107502,4.6438905,206.51,206.5,42.48261501]
[1756536107825,4.6438905,206.51,206.5,37.64]
[1756536108012,4.6438905,206.51,206.49,14.556394]
[1756536108323,4.5838905,206.5,206.49,37.66]
[1756536109109,157.3438905,206.49,206.46,14.558513]
[1756536109309,4.5838905,206.47,206.42,32.22]
[1756536109533,4.5838905,206.44,206.43,32.91]
[1756536109827,4.5838905,206.44,206.43,37.72]
[1756536110432,4.5838905,206.44,206.43,38.41]
[1756536111717,4.5838905,206.44,206.41,5.53455491]
[1756536112047,4.5838905,206.43,206.42,38.39]
[1756536117427,4.5838905,206.43,206.39,14.562753]
[1756536117637,4.5838905,206.4,206.36,0.69]
[1756536117941,4.5838905,206.37,206.36,37.68]
[1756536118113,4.5838905,206.37,206.34,0.69]
[1756536118312,4.5838905,206.35,206.34,37.7]
[1756536118524,4.5838905,206.35,206.34,38.39]
[1756536118718,4.5838905,206.35,206.32,0.69]
[1756536118924,4.5838905,206.33,206.32,37.7]
[1756536119137,4.5838905,206.34,206.32,37.7]
[1756536119638,4.5838905,206.34,206.33,0.69]
[1756536119935,4.5838905,206.34,206.31,0.69]
[1756536120112,4.5838905,206.4,206.31,0.69]
[1756536120113,4.5838905,206.32,206.31,0.69]
[1756536120512,4.5838905,206.32,206.3,0.03]
[1756536120717,4.5838905,206.31,206.3,0.03]
[1756536125655,26.0,206.32,206.3,0.03]
[1756536125858,4.5838905,206.31,206.3,0.03]
[1756536129851,26.0,206.33,206.3,0.03]
[1756536130060,26.0,206.31,206.3,0.69]
[1756536130451,4.5838905,206.31,206.3,0.69]
[1756536130760,13.73775558,206.36,206.3,0.69]
[1756536130761,42.557958,206.38,206.3,0.69]
[1756536131067,4.5838905,206.33,206.3,0.69]
[1756536131361,4.5838905,206.32,206.3,0.69]
[1756536131559,4.5838905,206.32,206.3,0.03]
[1756536131766,4.5838905,206.32,206.31,0.66]
[1756536133345,4.5838905,206.32,206.31,5.50707479]
[1756536134263,4.5838905,206.33,206.31,5.50707479]
[1756536134462,4.5838905,206.33,206.32,0.66]
[1756536134769,4.5838905,206.34,206.32,0.66]
[1756536135449,4.5838905,206.34,206.31,4.84707479]
[1756536135669,4.5838905,206.34,206.33,0.66]
[1756536136264,30.5838905,206.34,206.3,0.03]
[1756536136463,4.5838905,206.31,206.3,0.03]
[1756536136868,26.0,206.34,206.3,0.03]
[1756536137060,4.5838905,206.31,206.3,0.03]
[1756536137683,4.5838905,206.31,206.3,0.69]
[1756536138171,26.0,206.34,206.3,0.69]
[1756536138467,4.5838905,206.31,206.3,0.69]
[1756536138673,4.5838905,206.31,206.3,0.03]
[1756536139273,4.5838905,206.31,206.3,0.69]
[1756536139651,4.5838905,206.31,206.3,0.03]
[1756536143963,4.5838905,206.31,206.3,0.69]
[1756536144778,131.6,206.33,206.3,0.69]
[1756536144976,4.5838905,206.31,206.3,0.69]
[1756536145147,4.5838905,206.31,206.3,0.03]
[1756536145768,4.5838905,206.31,206.3,0.69]
[1756536148164,131.6,206.32,206.3,5.53718858]
[1756536148569,131.6,206.32,206.31,0.66]
[1756536149376,131.6,206.32,206.31,5.50707479]
[1756536152394,4.5838905,206.36,206.31,10.09096529]
[1756536152566,4.5838905,206.36,206.32,0.71]
[1756536153085,4.5838905,206.36,206.32,15.279118]
[1756536153287,131.6,206.39,206.32,14.569118]
[1756536153507,4.5838905,206.36,206.33,5.55660495]
[1756536153710,4.5838905,206.36,206.34,0.71]
[1756536154607,4.5838905,206.36,206.35,4.8461352]
[1756536155002,131.6,206.38,206.35,4.8461352]
[1756536155203,4.5838905,206.36,206.35,4.8461352]
[1756536156314,4.5838905,206.36,206.34,4.84635566]
[1756536156501,4.5838905,206.35,206.34,4.84635566]
[1756536157301,4.5838905,206.35,206.34,5.55635566]
[1756536157912,131.6,206.38,206.34,5.55635566]
[1756536158124,131.6,206.38,206.35,0.71]
[1756536158912,131.6,206.38,206.35,5.2938905]
[1756536159124,4.5838905,206.41,206.35,5.2938905]
[1756536159294,4.5838905,206.41,206.35,42.1838905]
[1756536159495,4.5838905,206.41,206.36,0.71]
[1756536160102,4.5838905,206.41,206.38,4.84543075]
[1756536160313,4.5838905,206.41,206.39,0.71]
[1756536161319,4.5838905,206.41,206.4,4.84496124]
[1756536162903,4.5838905,206.41,206.4,0.71]
[1756536163818,157.6,206.43,206.41,4.84472651]
[1756536164005,4.5838905,206.42,206.4,0.71]
[1756536164317,157.6,206.43,206.39,5.55501204]
[1756536164318,4.5838905,206.41,206.39,5.55501204]
[1756536165716,4.5838905,206.41,206.39,0.71]
[1756536166215,4.5838905,206.41,206.38,4.84543075]
[1756536166411,4.5838905,206.41,206.39,0.71]
[1756536168809,4.5838905,206.4,206.37,14.564874]
[1756536168998,4.5838905,206.38,206.37,14.564874]
[1756536169500,4.5838905,206.39,206.36,43.15567266]
[1756536169814,4.5838905,206.39,206.36,42.44567266]
[1756536170013,4.5838905,206.39,206.37,5.55553634]
[1756536170213,4.5838905,206.39,206.38,0.71]
[1756536171325,4.5838905,206.41,206.38,5.55537708]
[1756536171823,4.5838905,206.41,206.39,0.71]
[1756536172198,4.5838905,206.42,206.39,0.71]
[1756536172714,157.6,206.43,206.39,0.71]
[1756536172915,4.5838905,206.42,206.39,0.71]
[1756536173318,26.0,206.39,206.33,0.74]
[1756536173618,4.5838905,206.36,206.33,0.74]
[1756536174017,26.0,206.39,206.33,0.74]
[1756536174018,4.5838905,206.35,206.33,0.74]
[1756536174222,4.5838905,206.35,206.33,5.58652732]
[1756536174932,26.0,206.39,206.33,5.58652732]
[1756536175114,4.5838905,206.35,206.33,5.58652732]
[1756536176109,35.4288657,206.4,206.33,5.58652732]
[1756536176426,4.5838905,206.36,206.33,5.58652732]
[1756536177030,4.5838905,206.36,206.34,0.71]
[1756536177732,4.5838905,206.36,206.33,0.03]
[1756536177938,4.5838905,206.36,206.34,0.71]
[1756536178310,4.5838905,206.35,206.34,0.71]
[1756536178631,4.5838905,206.35,206.33,0.03]
[1756536178820,4.5838905,206.34,206.33,0.03]
[1756536180717,30.5838905,206.34,206.33,0.03]
[1756536182636,26.0,206.34,206.33,0.7]
[1756536183137,4.5838905,206.36,206.33,0.7]
[1756536183441,4.5838905,206.36,206.34,0.67]
[1756536183641,131.6,206.37,206.34,0.67]
[1756536184933,131.6,206.37,206.35,4.8461352]
[1756536185129,4.5838905,206.4,206.36,0.67]
[1756536185544,136.1838905,206.39,206.37,0.67]
[1756536185748,136.1838905,206.39,206.35,5.5161352]
[1756536185749,131.6,206.39,206.35,5.5161352]
[1756536185931,131.6,206.39,206.33,9.4600265]
[1756536185932,4.5838905,206.36,206.33,5.546136]
[1756536186134,4.5838905,206.34,206.33,0.03]
[1756536187937,4.5838905,206.34,206.33,0.7]
[1756536188150,4.5838905,206.35,206.33,0.7]
[1756536188649,131.6,206.39,206.34,0.67]
[1756536188850,131.6,206.38,206.34,5.2538905]
[1756536189148,131.6,206.38,206.36,4.84590036]
[1756536189332,131.6,206.38,206.37,0.67]
[1756536191153,131.6,206.38,206.37,5.51566555]
[1756536193657,131.6,206.38,206.37,4.84566555]
[1756536194562,131.6,206.38,206.35,5.51600407]
[1756536195167,131.6,206.38,206.36,0.67]
[1756536195660,131.6,206.38,206.36,5.51583454]
[1756536196541,131.6,206.38,206.37,0.67]
[1756536199067,131.6,206.38,206.36,4.84581285]
[1756536199267,131.6,206.38,206.36,0.67]
[1756536199568,131.6,206.38,206.37,0.67]
[1756536200847,131.6,206.38,206.35,4.8461352]
[1756536201047,136.1838905,206.38,206.36,0.67]
[1756536201255,4.5838905,206.37,206.33,0.7]
[1756536201456,4.5838905,206.36,206.33,5.546597]
[1756536201964,4.5838905,206.37,206.34,0.67]
[1756536202185,4.5838905,206.37,206.35,0.67]
[1756536203363,131.6,206.38,206.35,5.51607485]
[1756536203760,131.6,206.38,206.36,0.67]
[1756536203969,131.6,206.38,206.37,0.67]
[1756536205064,131.6,206.38,206.37,5.51566555]
[1756536210873,136.1838905,206.38,206.35,4.84593605]
[1756536211072,4.5838905,206.36,206.34,4.84634802]
[1756536211666,131.6,206.38,206.35,0.7]
[1756536211864,131.6,206.38,206.36,4.5838905]
[1756536212063,131.6,206.38,206.37,0.7]
[1756536213073,131.6,206.38,206.37,5.54566555]
[1756536214271,131.6,206.38,206.37,4.84566555]
[1756536215275,131.6,206.38,206.36,4.84590036]
[1756536215476,131.6,206.38,206.36,5.54590036]
[1756536216252,131.6,206.38,206.37,0.7]
[1756536218280,131.6,206.38,206.37,5.54566555]
[1756536224392,131.6,206.38,206.37,43.12566555]
[1756536224894,131.6,206.38,206.37,47.70955605]
[1756536225102,131.6,206.38,206.37,62.27372305]
[1756536225399,131.6,206.38,206.37,57.68983255]
[1756536227471,131.6,206.38,206.37,62.27372305]
[1756536227807,3.96619712,206.48,206.37,62.27372305]
[1756536227808,131.6,206.44,206.38,13.59559401]
[1756536227969,131.6,206.5,206.39,0.84216157]
[1756536228168,4.5838905,206.47,206.4,37.58]
[1756536228496,4.5838905,206.47,206.41,5.2838905]
[1756536228811,4.5838905,206.47,206.42,0.7]
[1756536229106,4.5838905,206.47,206.43,38.28]
[1756536229680,4.5838905,206.48,206.44,4.84402247]
[1756536230881,131.6,206.49,206.44,4.84402247]
[1756536231081,4.5838905,206.47,206.44,5.54402247]
[1756536231282,4.5838905,206.48,206.44,5.54402247]
[1756536231492,136.1838905,206.49,206.45,0.7]
[1756536231706,4.5838905,206.48,206.45,0.7]
[1756536231900,4.5838905,206.48,206.44,4.84402247]
[1756536232231,4.5838905,206.48,206.44,5.54402247]
[1756536234917,131.6,206.49,206.44,4.84402247]
[1756536235091,136.1838905,206.49,206.45,0.7]
[1756536235287,136.1838905,206.49,206.44,4.84402247]
[1756536235502,4.5838905,206.48,206.44,5.54402247]
[1756536235706,4.5838905,206.48,206.45,0.7]
[1756536235984,4.5838905,206.48,206.46,4.84355323]
[1756536236487,4.5838905,206.48,206.44,42.40380845]
[1756536236688,4.5838905,206.48,206.44,43.10380845]
[1756536237786,131.6,206.49,206.46,4.84355323]
[1756536238104,4.5838905,206.48,206.46,4.84355323]
[1756536238296,136.1838905,206.49,206.46,4.84355323]
[1756536239815,131.6,206.49,206.45,4.84378784]
[1756536239991,136.1838905,206.48,206.45,4.84378784]
[1756536240392,131.6,206.48,206.43,43.10412455]
[1756536240690,4.5838905,206.47,206.44,0.7]
[1756536241300,4.5838905,206.47,206.45,0.67]
[1756536241596,136.1838905,206.48,206.45,0.67]
[1756536242313,136.1838905,206.48,206.44,4.84402247]
[1756536242516,136.1838905,206.48,206.44,5.51402247]
[1756536243612,136.1838905,206.48,206.45,0.67]
[1756536244402,136.1838905,206.48,206.45,5.51371532]
[1756536244595,136.1838905,206.48,206.45,4.84371532]
[1756536245912,131.6,206.47,206.45,4.84371532]
[1756536247616,173.7438905,206.46,206.41,14.562047]
[1756536247822,4.5838905,206.42,206.38,0.67]
[1756536248128,4.5838905,206.41,206.38,0.67]
[1756536248306,4.5838905,206.41,206.38,4.84543075]
[1756536248504,4.5838905,206.41,206.39,0.67]
[1756536248720,169.16,206.46,206.39,0.67]
[1756536248918,4.5838905,206.41,206.39,0.67]
[1756536249428,4.5838905,206.41,206.39,5.51510348]
[1756536250919,4.5838905,206.41,206.39,4.84510348]
[1756536251109,4.5838905,206.41,206.37,25.84]
[1756536251110,4.5838905,206.4,206.37,31.35553894]
[1756536251302,4.5838905,206.38,206.35,0.03]
[1756536251509,4.5838905,206.36,206.35,0.03]
[1756536251721,4.5838905,206.37,206.35,0.7]
[1756536252521,63.56,206.41,206.35,5.5461352]
[1756536252707,4.5838905,206.37,206.35,5.5461352]
[1756536253929,4.5838905,206.36,206.35,5.5461352]
[1756536254622,131.6,206.4,206.35,5.5461352]
[1756536254834,4.5838905,206.36,206.35,5.5461352]
[1756536255124,4.5838905,206.36,206.35,4.8761352]
[1756536255322,4.5838905,206.36,206.35,0.03]
[1756536267331,26.0,206.38,206.35,0.03]
[1756536267540,4.5838905,206.36,206.35,0.03]
[1756536268021,4.5838905,206.36,206.35,0.7]
[1756536270048,5.546733,206.41,206.35,0.7]
[1756536270049,5.546733,206.41,206.35,5.54610251]
[1756536270361,5.546733,206.41,206.36,5.2538905]
[1756536270362,4.5838905,206.41,206.36,5.2538905]
[1756536270523,4.5838905,206.41,206.37,5.51566555]
[1756536270722,4.5838905,206.43,206.38,5.2538905]
[1756536270919,4.5838905,206.44,206.39,5.2538905]
[1756536271142,4.5838905,206.44,206.4,0.67]
[1756536271349,30.5838905,206.44,206.4,0.67]
[1756536271849,4.5838905,206.44,206.4,0.67]
[1756536272347,30.5838905,206.45,206.4,0.67]
[1756536272548,30.5838905,206.45,206.41,4.84472651]
[1756536272746,4.5838905,206.45,206.42,0.67]
[1756536272948,4.5838905,206.45,206.43,0.67]
[1756536274538,4.5838905,206.45,206.43,5.51420342]
[1756536274922,4.5838905,206.45,206.43,0.67]
[1756536275240,4.5838905,206.44,206.43,0.67]
[1756536275443,4.5838905,206.44,206.41,5.51451056]
[1756536275628,131.6,206.45,206.42,0.67]
[1756536275832,4.5838905,206.43,206.42,0.67]
[1756536276845,4.5838905,206.44,206.42,5.51449181]
[1756536277026,136.1838905,206.45,206.42,5.51449181]
[1756536279754,136.1838905,206.45,206.42,0.67]
[1756536280156,131.6,206.45,206.43,0.67]
[1756536280529,136.1838905,206.45,206.43,0.67]
[1756536280729,136.1838905,206.45,206.41,0.67]
[1756536280954,136.1838905,206.45,206.42,0.67]
[1756536281129,136.1838905,206.45,206.43,0.67]
[1756536281528,131.6,206.44,206.43,0.67]
[1756536282060,131.6,206.44,206.43,5.51425713]
[1756536283567,131.6,206.44,206.43,10.09814763]
[1756536283730,136.1838905,206.49,206.43,10.09814763]
[1756536284069,131.6,206.48,206.44,0.67]
[1756536284232,131.6,206.48,206.44,5.2538905]
[1756536284792,131.6,206.48,206.43,4.84425713]
[1756536284793,136.1838905,206.48,206.45,0.67]
[1756536285368,136.1838905,206.48,206.46,0.67]
[1756536285533,131.6,206.48,206.47,4.84331864]
[1756536285738,131.6,206.48,206.47,5.51331864]
[1756536288264,131.6,206.48,206.45,4.84378784]
[1756536288566,4.5838905,206.46,206.4,4.84496124]
[1756536288755,131.6,206.48,206.43,0.67]
[1756536289056,136.1838905,206.48,206.43,5.2538905]
[1756536289231,136.1838905,206.48,206.43,19.8152295]
[1756536289435,136.1838905,206.48,206.44,0.67]
[1756536290074,131.6,206.48,206.45,4.84378784]
[1756536290235,131.6,206.48,206.46,5.2538905]
[1756536290560,131.6,206.48,206.47,0.67]
[1756536291361,131.6,206.48,206.47,5.51331864]
[1756536292332,4.5838905,206.5,206.47,5.51331864]
[1756536292333,0.06,206.51,206.47,5.51331864]
[1756536292665,0.06,206.51,206.48,0.67]
[1756536293048,0.06,206.51,206.49,0.67]
[1756536293459,0.06,206.51,206.5,4.84261501]
[1756536295267,0.06,206.51,206.49,5.51282705]
[1756536295650,0.06,206.51,206.5,0.67]
[1756536296362,4.6438905,206.51,206.48,5.51308407]
[1756536296536,4.6438905,206.51,206.49,0.67]
[1756536296740,4.6438905,206.51,206.5,0.67]
[1756536296938,4.6438905,206.51,206.49,0.67]
[1756536297156,4.6438905,206.51,206.5,0.67]
[1756536297462,4.6438905,206.51,206.48,4.84308407]
[1756536297653,4.6438905,206.51,206.49,0.67]
[1756536298362,4.6438905,206.51,206.49,5.51275132]
[1756536299735,0.06,206.51,206.49,5.51275132]
[1756536300235,0.06,206.51,206.49,4.84275132]
[1756536300439,0.06,206.51,206.5,0.67]
[1756536301063,4.6438905,206.51,206.48,4.84305132]
[1756536301362,4.6438905,206.51,206.49,0.7]
[1756536301671,0.06,206.51,206.48,4.84305132]
[1756536301843,0.06,206.51,206.5,0.7]
[1756536302747,0.06,206.53,206.5,10.12650551]
[1756536302952,0.06,206.53,206.52,4.5838905]
[1756536303345,0.06,206.53,206.52,5.2838905]
[1756536304179,0.06,206.53,206.52,10.12603653]
[1756536307978,4.6438905,206.53,206.51,12.106866]
[1756536308181,0.06,206.53,206.49,0.03]
[1756536308488,0.06,206.53,206.51,0.7]
[1756536309252,0.06,206.53,206.51,4.84238051]
[1756536309760,0.06,206.53,206.51,5.54238051]
[1756536309979,0.06,206.53,206.52,0.7]
[1756536310657,0.06,206.53,206.51,4.84238051]
[1756536310864,4.6438905,206.53,206.51,4.84238051]
[1756536311379,0.06,206.53,206.51,4.84238051]
[1756536311582,0.06,206.53,206.52,0.7]
[1756536312762,0.06,206.53,206.52,5.54214603]
[1756536312964,0.06,206.53,206.52,4.84214603]
[1756536313173,0.06,206.53,206.49,0.03]
[1756536313174,30.6438905,206.53,206.49,0.03]
[1756536313370,35.167781,206.5,206.49,0.03]
[1756536313561,48.90553658,206.5,206.49,0.03]
[1756536314078,48.90553658,206.5,206.41,19.40746666]
[1756536314079,26.0,206.47,206.41,19.40746666]
[1756536314258,4.5838905,206.47,206.42,4.84448209]
[1756536314568,4.5838905,206.47,206.41,5.54471545]
[1756536314884,4.5838905,206.47,206.41,0.7]
[1756536315463,23.16496472,206.47,206.38,6.78740226]
[1756536315663,23.16496472,206.47,206.39,0.7]
[1756536316259,26.41729863,206.47,206.39,0.7]
[1756536316454,26.41729863,206.47,206.36,4.84583532]
[1756536316680,26.41729863,206.47,206.38,0.7]
[1756536317688,30.5838905,206.47,206.43,0.7]
[1756536317896,68.4238905,206.47,206.43,0.7]
[1756536318556,71.82014885,206.47,206.4,0.7]
[1756536318975,76.66346749,206.47,206.4,0.7]
[1756536320167,76.66346749,206.47,206.39,4.84505155]
[1756536320367,76.66346749,206.47,206.41,0.7]
[1756536321684,78.60554549,206.47,206.41,0.7]
[1756536321983,74.02165499,206.47,206.41,0.7]
[1756536322198,78.60554549,206.47,206.41,0.7]
[1756536322681,70.50813007,206.47,206.44,0.73]
[1756536323387,4.5838905,206.47,206.46,0.73]
[1756536323566,30.5838905,206.47,206.46,0.73]
[1756536325587,30.5838905,206.47,206.46,0.03]
[1756536326166,30.5838905,206.47,206.46,0.73]
[1756536328396,26.0,206.47,206.46,0.73]
[1756536328691,30.5838905,206.47,206.46,0.73]
[1756536330093,26.0,206.47,206.46,0.73]
[1756536330297,30.5838905,206.47,206.46,0.73]
[1756536332692,30.5838905,206.47,206.46,5.57355323]
[1756536332898,4.6438905,206.49,206.46,5.57355323]
[1756536333071,4.6438905,206.49,206.47,0.68]
[1756536334075,4.6438905,206.49,206.47,5.52318867]
[1756536334278,4.6438905,206.49,206.48,0.68]
[1756536335272,30.6438905,206.49,206.46,0.03]
[1756536335476,30.6438905,206.49,206.46,0.71]
[1756536335477,4.5838905,206.47,206.46,0.71]
[1756536335677,4.5838905,206.47,206.46,0.03]
[1756536335890,26.06,206.49,206.46,0.03]
[1756536336092,4.5838905,206.47,206.46,0.71]
[1756536336399,4.5838905,206.47,206.46,4.87355323]